fUSD/lending_fUSD_20250814
["ID","MTS","AMOUNT","RATE_DAILY","PERIOD"]
[379230180,1755199857474,-400.70671271,0.00027397,2]
[379230181,1755199857484,-917.94,0.00027397,2]
[379230182,1755199857494,-400.0,0.00027397,2]
[379230183,1755199857504,-572.593292,0.00027397,7]
[379230184,1755199857514,-572.593292,0.00027397,7]
[379230185,1755199857524,-572.593292,0.00027397,7]
[379230186,1755199857534,-572.593292,0.00027397,7]
[379230187,1755199857544,-4001.59,0.00027397,2]
[379230188,1755199857554,-401.08536678,0.00027397,2]
[379230189,1755199857564,-151.0,0.00027397,7]
[379230190,1755199857574,-572.593292,0.00027397,7]
[379230191,1755199857584,-151.0,0.00027397,7]
[379230192,1755199857594,-572.593292,0.00027397,7]
[379230193,1755199857604,-151.0,0.00027397,7]
[379230194,1755199857615,-151.0,0.00027397,7]
[379230195,1755199857624,-3045.29,0.00027397,2]
[379230196,1755199857635,-151.0,0.00027397,7]
[379230197,1755199857644,-4968.37,0.00027397,2]
[379230198,1755199857655,-1651.49,0.00027397,2]
[379230199,1755199857666,-1207.54,0.00027397,2]
[379230200,1755199857676,-2179.34,0.00027397,2]
[379230201,1755199857686,-924.46,0.00027397,2]
[379230202,1755199857696,-1470.55,0.00027397,2]
[379230203,1755199857705,-400.0,0.00027397,2]
[379230204,1755199857714,-1051.49,0.00027397,2]
[379230205,1755199857724,-1550.16,0.00027397,2]
[379230206,1755199857734,-400.0,0.00027397,2]
[379230207,1755199857744,-991.31,0.00027397,2]
[379230208,1755199857754,-2616.32,0.00027397,2]
[379230209,1755199857763,-1711.37,0.00027397,2]
[379230210,1755199857773,-400.0,0.00027397,2]
[379230211,1755199857783,-3639.44,0.00027397,2]
[379230212,1755199857792,-668.77,0.00027397,2]
[379230213,1755199857802,-400.0,0.00027397,2]
[379230214,1755199857811,-1082.07,0.00027397,2]
[379230215,1755199857821,-1291.63,0.00027397,2]
[379230216,1755199857831,-400.73,0.00027397,2]
[379230217,1755199857840,-400.0,0.00027397,2]
[379230218,1755199857851,-400.0,0.00027397,2]
[379230219,1755199857860,-3037.03,0.00027397,2]
[379230220,1755199857871,-681.53,0.00027397,2]
[379230221,1755199857881,-829.22,0.00027397,2]
[379230222,1755199857891,-400.0,0.00027397,2]
[379230223,1755199857902,-400.0,0.00027397,2]
[379230224,1755199857911,-576.88,0.00027397,2]
[379230225,1755199857921,-990.32,0.00027397,2]
[379230226,1755199857931,-760.41,0.00027397,2]
[379230227,1755199857941,-400.0,0.00027397,2]
[379230228,1755199857951,-400.0,0.00027397,2]
[379230229,1755199857962,-735.13,0.00027397,2]
[379230230,1755199857972,-3366.99,0.00027397,2]
[379230231,1755199857982,-421.61,0.00027397,2]
[379230232,1755199857992,-2930.91,0.00027397,2]
[379230233,1755199858004,-1530.4,0.00027397,2]
[379230234,1755199858015,-2643.18,0.00027397,2]
[379230235,1755199858026,-498.55,0.00027397,2]
[379230236,1755199858036,-400.0,0.00027397,2]
[379230237,1755199858046,-400.0,0.00027397,2]
[379230238,1755199858057,-1860.56,0.00027397,2]
[379230239,1755199858066,-400.0,0.00027397,2]
[379230240,1755199858076,-4067.51,0.00027397,2]
[379230241,1755199858085,-400.0,0.00027397,2]
[379230242,1755199858095,-400.0,0.00027397,2]
[379230243,1755199858104,-3362.49,0.00027397,2]
[379230244,1755199858113,-5033.49,0.00027397,2]
[379230245,1755199858125,-523.07,0.00027397,2]
[379230246,1755199858134,-400.0,0.00027397,2]
[379230247,1755199858144,-400.0,0.00027397,2]
[379230248,1755199858154,-406.38,0.00027397,2]
[379230249,1755199858165,-475.07,0.00027397,2]
[379230250,1755199858175,-400.0,0.00027397,2]
[379230251,1755199858186,-570.29,0.00027397,2]
[379230252,1755199858196,-400.0,0.00027397,2]
[379230253,1755199858207,-400.0,0.00027397,2]
[379230254,1755199858217,-400.0,0.00027397,2]
[379230255,1755199858227,-400.0,0.00027397,2]
[379230256,1755199858237,-1160.47,0.00027397,2]
[379230257,1755199858248,-489.55,0.00027397,2]
[379230258,1755199858258,-1973.73,0.00027397,2]
[379230259,1755199858273,-1973.73,0.00027397,2]
[379230260,1755199858284,-1973.73,0.00027397,2]
[379230261,1755199858294,-1973.73,0.00027397,2]
[379230262,1755199858305,-1973.73,0.00027397,2]
[379230263,1755199858315,-1973.73,0.00027397,2]
[379230264,1755199858325,-1973.73,0.00027397,2]
[379230265,1755199858335,-1973.73,0.00027397,2]
[379230266,1755199858346,-1973.73,0.00027397,2]
[379230267,1755199858355,-1973.73,0.00027397,2]
[379230268,1755199858365,-1973.73,0.00027397,2]
[379230269,1755199858374,-400.0,0.00027397,2]
[379230270,1755199858384,-1973.73,0.00027397,2]
[379230271,1755199858393,-1973.73,0.00027397,2]
[379230272,1755199858402,-2013.26,0.00027397,2]
[379230273,1755199858412,-1973.73,0.00027397,2]
[379230274,1755199858421,-1973.73,0.00027397,2]
[379230275,1755199858431,-1973.73,0.00027397,2]
[379230276,1755199858440,-1973.73,0.00027397,2]
[379230277,1755199858449,-486.92,0.00027397,2]
[379230278,1755199858459,-1973.73,0.00027397,2]
[379230279,1755199858469,-864.23,0.00027397,2]
[379230280,1755199858478,-1110.49,0.00027397,2]
[379230281,1755199858488,-1973.73,0.00027397,2]
[379230282,1755199858497,-400.0,0.00027397,2]
[379230283,1755199858507,-1973.73,0.00027397,2]
[379230284,1755199858516,-1932.2,0.00027397,2]
[379230285,1755199858525,-1973.73,0.00027397,2]
[379230286,1755199858535,-400.0,0.00027397,2]
[379230287,1755199858545,-2098.46,0.00027397,2]
[379230288,1755199858554,-1973.73,0.00027397,2]
[379230289,1755199858564,-1334.15,0.00027397,2]
[379230290,1755199858574,-1973.73,0.00027397,2]
[379230291,1755199858583,-1973.78004826,0.00027397,2]
[379230292,1755199858592,-400.0,0.00027397,2]
[379230293,1755199858601,-1633.55,0.00027397,2]
[379230294,1755199858611,-1521.29,0.00027397,2]
[379230295,1755199858620,-400.0,0.00027397,2]
[379230296,1755199858629,-1216.3,0.00027397,2]
[379230297,1755199858639,-864.78,0.00027397,2]
[379230298,1755199858648,-857.1,0.00027397,2]
[379230299,1755199858657,-400.0,0.00027397,2]
[379230300,1755199858667,-6066.58,0.00027397,2]
[379230301,1755199858676,-400.0,0.00027397,2]
[379230302,1755199858686,-400.0,0.00027397,2]
[379230303,1755199858695,-500.0,0.00027397,2]
[379230304,1755199858705,-500.0,0.00027397,2]
[379230305,1755199858714,-500.0,0.00027397,2]
[379230306,1755199858723,-1112.22,0.00027397,2]
[379230307,1755199858733,-500.0,0.00027397,2]
[379230308,1755199858742,-400.0,0.00027397,2]
[379230309,1755199858752,-2000.0,0.00027397,30]
[379230310,1755199858761,-500.0,0.00027397,2]
[379230311,1755199858771,-500.0,0.00027397,2]
[379230312,1755199858781,-500.0,0.00027397,2]
[379230313,1755199858791,-500.0,0.00027397,2]
[379230314,1755199858800,-500.0,0.00027397,2]
[379230315,1755199858810,-500.0,0.00027397,2]
[379230316,1755199858820,-400.0,0.00027397,2]
[379230317,1755199858830,-500.0,0.00027397,2]
[379230318,1755199858839,-500.0,0.00027397,2]
[379230319,1755199858848,-2334.04,0.00027397,2]
[379230320,1755199858857,-500.0,0.00027397,2]
[379230321,1755199858867,-400.0,0.00027397,2]
[379230322,1755199858877,-500.0,0.00027397,2]
[379230323,1755199858886,-5612.6,0.00027397,2]
[379230324,1755199858896,-606.10589464,0.00027397,2]
[379230325,1755199858905,-400.0,0.00027397,2]
[379230326,1755199859088,-5432.19,0.00027397,2]
[379230327,1755199859099,-2445.08,0.00027397,2]
[379230328,1755199859109,-942.94,0.00027397,2]
[379230329,1755199859119,-854.01,0.00027397,2]
[379230330,1755199859129,-724.71,0.00027397,2]
[379230331,1755199859139,-400.0,0.00027397,2]
[379230332,1755199859149,-927.19,0.00027397,2]
[379230333,1755199859159,-1591.37,0.00027397,2]
[379230334,1755199859169,-918.11,0.00027397,2]
[379230335,1755199859180,-432.97,0.00027397,2]
[379230336,1755199859190,-675.25,0.00027397,2]
[379230337,1755199859199,-1137.75,0.00027397,2]
[379230338,1755199859211,-2857.86,0.00027397,2]
[379230339,1755199859223,-1285.06,0.00027397,2]
[379230340,1755199859233,-663.68,0.00027397,2]
[379230341,1755199859243,-1610.48,0.00027397,2]
[379230342,1755199859253,-537.23,0.00027397,2]
[379230343,1755199859265,-2471.15,0.00027397,2]
[379230344,1755199859276,-4094.36,0.00027397,2]
[379230345,1755199859286,-400.0,0.00027397,2]
[379230346,1755199859296,-500.0,0.00027397,2]
[379230347,1755199859307,-500.0,0.00027397,2]
[379230348,1755199859320,-900.46,0.00027397,2]
[379230349,1755199859329,-400.0,0.00027397,2]
[379230350,1755199859340,-500.0,0.00027397,2]
[379230351,1755199859351,-1815.1,0.00027397,2]
[379230352,1755199859361,-500.0,0.00027397,2]
[379230353,1755199859371,-400.0,0.00027397,2]
[379230354,1755199859380,-376.57,0.00027397,2]
[379230355,1755199859391,-400.0,0.00027397,2]
[379230356,1755199859400,-1326.17,0.00027397,2]
[379230357,1755199859410,-400.0,0.00027397,2]
[379230358,1755199859421,-1471.29,0.00027397,2]
[379230359,1755199859431,-400.0,0.00027397,2]
[379230360,1755199859441,-655.73,0.00027397,2]
[379230361,1755199859453,-400.0,0.00027397,2]
[379230362,1755199859462,-3813.31,0.00027397,2]
[379230363,1755199859472,-505.6,0.00027397,2]
[379230364,1755199859482,-1222.07,0.00027397,2]
[379230365,1755199859491,-3673.54,0.00027397,2]
[379230366,1755199859503,-400.0,0.00027397,2]
[379230367,1755199859513,-2887.050502,0.00027397,2]
[379230368,1755199859524,-2296.29,0.00027397,2]
[379230369,1755199859535,-400.0,0.00027397,2]
[379230370,1755199859545,-2108.37,0.00027397,2]
[379230371,1755199859553,-400.0,0.00027397,2]
[379230372,1755199859563,-400.0,0.00027397,2]
[379230373,1755199859572,-4479.231955,0.00027397,2]
[379230374,1755199859582,-400.0,0.00027397,2]
[379230375,1755199859591,-400.0,0.00027397,2]
[379230376,1755199859600,-1893.69,0.00027397,2]
[379230377,1755199859610,-1227.72,0.00027397,2]
[379230378,1755199859619,-400.0,0.00027397,2]
[379230379,1755199859628,-400.0,0.00027397,2]
[379230380,1755199859639,-2709.33,0.00027397,2]
[379230381,1755199859648,-1322.88,0.00027397,2]
[379230382,1755199859661,-811.72,0.00027397,2]
[379230383,1755199859672,-400.0,0.00027397,2]
[379230384,1755199859683,-400.0,0.00027397,2]
[379230385,1755199859694,-400.0,0.00027397,2]
[379230386,1755199859703,-400.0,0.00027397,2]
[379230387,1755199859713,-400.0,0.00027397,2]
[379230388,1755199859723,-4454.59,0.00027397,2]
[379230389,1755199859732,-400.0,0.00027397,2]
[379230390,1755199859741,-905.84,0.00027397,2]
[379230391,1755199859752,-467.31,0.00027397,2]
[379230392,1755199859762,-400.0,0.00027397,2]
[379230393,1755199859772,-230.712521,0.00027397,2]
[379230394,1755199859782,-1521.85,0.00027397,2]
[379230395,1755199859792,-1112.89,0.00027397,2]
[379230396,1755199859802,-5348.15,0.00027397,2]
[379230397,1755199859813,-550.21,0.00027397,2]
[379230398,1755199859822,-867.56,0.00027397,2]
[379230399,1755199859832,-400.0,0.00027397,2]
[379230400,1755199859842,-169.12713066,0.00027397,2]
[379230401,1755199859852,-400.0,0.00027397,2]
[379230402,1755199859861,-1574.71,0.00027397,2]
[379230403,1755199859870,-1570.14,0.00027397,2]
[379230404,1755199859879,-4387.92,0.00027397,2]
[379230405,1755199859890,-500.0,0.00027397,2]
[379230406,1755199859899,-500.0,0.00027397,2]
[379230407,1755199859908,-400.0,0.00027397,2]
[379230408,1755199859918,-500.0,0.00027397,2]
[379230409,1755199859927,-500.0,0.00027397,2]
[379230410,1755199859936,-500.0,0.00027397,2]
[379230411,1755199859947,-4404.44,0.00027397,2]
[379230412,1755199859956,-500.0,0.00027397,2]
[379230413,1755199859966,-500.0,0.00027397,2]
[379230414,1755199859978,-500.0,0.00027397,2]
[379230415,1755199859988,-500.0,0.00027397,2]
[379230416,1755199859998,-500.0,0.00027397,2]
[379230417,1755199860007,-500.0,0.00027397,2]
[379230418,1755199860017,-500.0,0.00027397,2]
[379230419,1755199860027,-400.0,0.00027397,2]
[379230420,1755199860037,-500.0,0.00027397,2]
[379230421,1755199860047,-500.0,0.00027397,2]
[379230422,1755199860056,-500.0,0.00027397,2]
[379230423,1755199860066,-500.0,0.00027397,2]
[379230424,1755199860075,-500.0,0.00027397,2]
[379230425,1755199860084,-2312.65,0.00027397,2]
[379230426,1755199860094,-500.0,0.00027397,2]
[379230427,1755199860103,-500.0,0.00027397,2]
[379230428,1755199860113,-400.0,0.00027397,2]
[379230429,1755199860122,-400.0,0.00027397,2]
[379230430,1755199860132,-640.53,0.00027397,2]
[379230431,1755199860141,-1151.67,0.00027397,2]
[379230432,1755199860153,-2492.74,0.00027397,2]
[379230433,1755199860163,-1202.54,0.00027397,2]
[379230434,1755199860175,-945.04,0.00027397,2]
[379230435,1755199860184,-634.25,0.00027397,2]
[379230436,1755199860195,-400.0,0.00027397,2]
[379230437,1755199860206,-5887.31,0.00027397,2]
[379230438,1755199860219,-509.36,0.00027397,2]
[379230439,1755199860231,-400.0,0.00027397,2]
[379230440,1755199860242,-4413.69,0.00027397,2]
[379230441,1755199860258,-2945.94,0.00027397,2]
[379230442,1755199860271,-400.0,0.00027397,2]
[379230443,1755199860281,-1635.25,0.00027397,2]
[379230444,1755199860292,-3815.13,0.00027397,2]
[379230445,1755199860303,-1406.61,0.00027397,2]
[379230446,1755199860314,-3998.849335,0.00027397,2]
[379230447,1755199860325,-500.0,0.00027397,2]
[379230448,1755199860335,-3064.79,0.00027397,2]
[379230449,1755199860346,-500.0,0.00027397,2]
[379230450,1755199860357,-1255.47,0.00027397,2]
[379230451,1755199860367,-500.0,0.00027397,2]
[379230452,1755199860377,-1198.47,0.00027397,2]
[379230453,1755199860388,-500.0,0.00027397,2]
[379230454,1755199860398,-415.83,0.00027397,2]
[379230455,1755199860409,-400.0,0.00027397,2]
[379230456,1755199860419,-500.0,0.00027397,2]
[379230457,1755199860430,-401.246059,0.00027397,2]
[379230458,1755199860441,-500.0,0.00027397,2]
[379230459,1755199860451,-500.0,0.00027397,2]
[379230460,1755199860462,-500.0,0.00027397,2]
[379230461,1755199860472,-4838.28,0.00027397,2]
[379230462,1755199860483,-703.82,0.00027397,2]
[379230463,1755199860493,-915.72,0.00027397,2]
[379230464,1755199860503,-500.0,0.00027397,2]
[379230465,1755199860514,-500.0,0.00027397,2]
[379230466,1755199860525,-400.0,0.00027397,2]
[379230467,1755199860535,-396.6414079,0.00027397,2]
[379230468,1755199860546,-1802.56,0.00027397,2]
[379230469,1755199860557,-400.0,0.00027397,2]
[379230470,1755199860568,-400.0,0.00027397,2]
[379230471,1755199860583,-6259.48,0.00027397,2]
[379230472,1755199860595,-400.0,0.00027397,2]
[379230473,1755199860606,-400.0,0.00027397,2]
[379230474,1755199860621,-4122.44,0.00027397,2]
[379230475,1755199860642,-400.0,0.00027397,2]
[379230476,1755199860664,-2042.83,0.00027397,2]
[379230477,1755199860677,-400.0,0.00027397,2]
[379230478,1755199860688,-3845.11,0.00027397,2]
[379230479,1755199860699,-1023.94,0.00027397,2]
[379230480,1755199860710,-400.0,0.00027397,2]
[379230481,1755199860721,-400.0,0.00027397,2]
[379230482,1755199860732,-400.0,0.00027397,2]
[379230483,1755199860742,-3294.42,0.00027397,2]
[379230484,1755199860753,-918.94,0.00027397,2]
[379230485,1755199860764,-400.0,0.00027397,2]
[379230486,1755199860775,-2694.98,0.00027397,2]
[379230487,1755199860786,-2192.98,0.00027397,2]
[379230488,1755199860797,-879.61,0.00027397,2]
[379230489,1755199860808,-1811.42,0.00027397,2]
[379230490,1755199860819,-400.0,0.00027397,2]
[379230491,1755199860832,-438.514139,0.00027397,7]
[379230492,1755199860843,-846.94,0.00027397,2]
[379230493,1755199860854,-438.514139,0.00027397,7]
[379230494,1755199860864,-5505.55,0.00027397,2]
[379230495,1755199860875,-438.514139,0.00027397,7]
[379230496,1755199860886,-438.514139,0.00027397,7]
[379230497,1755199860897,-400.0,0.00027397,2]
[379230498,1755199860908,-438.514139,0.00027397,7]
[379230499,1755199860918,-284.507603,0.00027397,2]
[379230500,1755199860929,-1817.6,0.00027397,2]
[379230501,1755199860939,-727.53,0.00027397,2]
[379230502,1755199860951,-873.4,0.00027397,2]
[379230503,1755199860962,-400.0,0.00027397,2]
[379230504,1755199860973,-639.76,0.00027397,2]
[379230505,1755199860984,-4418.25,0.00027397,2]
[379230506,1755199860995,-438.514139,0.00027397,7]
[379230507,1755199861006,-438.514139,0.00027397,7]
[379230508,1755199861018,-438.514139,0.00027397,7]
[379230509,1755199861029,-1454.09,0.00027397,2]
[379230510,1755199861039,-438.514139,0.00027397,7]
[379230511,1755199861051,-438.514139,0.00027397,7]
[379230512,1755199861061,-208.978683,0.00027397,2]
[379230513,1755199861073,-400.0,0.00027397,2]
[379230514,1755199861084,-494.73319248,0.00027397,2]
[379230515,1755199861096,-400.0,0.00027397,2]
[379230516,1755199861107,-679.35,0.00027397,2]
[379230517,1755199861119,-1201.5,0.00027397,2]
[379230518,1755199861130,-500.0,0.00027397,2]
[379230519,1755199861141,-500.0,0.00027397,2]
[379230520,1755199861152,-500.0,0.00027397,2]
[379230521,1755199861162,-5190.73,0.00027397,2]
[379230522,1755199861173,-500.0,0.00027397,2]
[379230523,1755199861184,-400.0,0.00027397,2]
[379230524,1755199861195,-500.0,0.00027397,2]
[379230525,1755199861206,-443.72,0.00027397,2]
[379230526,1755199861217,-645.73,0.00027397,2]
[379230527,1755199861228,-2990.26,0.00027397,2]
[379230528,1755199861239,-1726.82,0.00027397,2]
[379230529,1755199861249,-406.52007179,0.00027397,2]
[379230530,1755199861261,-400.0,0.00027397,2]
[379230531,1755199861274,-415.63,0.00027397,2]
[379230532,1755199861285,-3398.07,0.00027397,2]
[379230533,1755199861296,-400.0,0.00027397,2]
[379230534,1755199861308,-400.0,0.00027397,2]
[379230535,1755199861322,-399.179645,0.00027397,7]
[379230536,1755199861333,-400.0,0.00027397,2]
[379230537,1755199861345,-399.179645,0.00027397,7]
[379230538,1755199861356,-684.74,0.00027397,2]
[379230539,1755199861367,-399.179645,0.00027397,7]
[379230540,1755199861378,-399.179645,0.00027397,7]
[379230541,1755199861398,-2806.49,0.00027397,2]
[379230542,1755199861418,-399.179645,0.00027397,7]
[379230543,1755199861436,-20753.20322211,0.00027397,2]
[379230544,1755199861459,-1379.75,0.00027397,2]
[379230545,1755199861474,-4083.54,0.00027397,2]
[379230546,1755199861490,-1004.61,0.00027397,2]
[379230547,1755199861505,-1064.82,0.00027397,2]
[379230548,1755199861522,-400.0,0.00027397,2]
[379230549,1755199861543,-727.13,0.00027397,2]
[379230550,1755199861560,-415.03,0.00027397,2]
[379230551,1755199861581,-399.179645,0.00027397,7]
[379230552,1755199861597,-2866.32,0.00027397,2]
[379230553,1755199861616,-400.0,0.00027397,2]
[379230554,1755199861631,-2745.86,0.00027397,2]
[379230555,1755199861650,-399.179645,0.00027397,7]
[379230556,1755199861666,-400.0,0.00027397,2]
[379230557,1755199861682,-399.179645,0.00027397,7]
[379230558,1755199861698,-400.0,0.00027397,2]
[379230559,1755199861713,-488.37482069,0.00027397,2]
[379230560,1755199861731,-399.179645,0.00027397,7]
[379230561,1755199861749,-399.179645,0.00027397,7]
[379230562,1755199861765,-400.0,0.00027397,2]
[379230563,1755199861781,-2582.34,0.00027397,2]
[379230564,1755199861797,-400.0,0.00027397,2]
[379230565,1755199861812,-411.97227368,0.00027397,2]
[379230566,1755199861832,-2991.8,0.00027397,2]
[379230567,1755199861860,-400.0,0.00027397,2]
[379230568,1755199861876,-400.0,0.00027397,2]
[379230569,1755199861892,-1204.36,0.00027397,2]
[379230570,1755199861908,-400.0,0.00027397,2]
[379230571,1755199861925,-3230.02,0.00027397,2]
[379230572,1755199861941,-400.0,0.00027397,2]
[379230573,1755199861957,-400.0,0.00027397,2]
[379230574,1755199861973,-956.72,0.00027397,2]
[379230575,1755199861989,-2372.0,0.00027397,2]
[379230576,1755199862006,-1579.63,0.00027397,2]
[379230577,1755199862021,-400.0,0.00027397,2]
[379230578,1755199862037,-3900.95,0.00027397,2]
[379230579,1755199862053,-2408.16,0.00027397,2]
[379230580,1755199862068,-1221.98,0.00027397,2]
[379230581,1755199862085,-1553.62,0.00027397,2]
[379230582,1755199862101,-400.0,0.00027397,2]
[379230583,1755199862116,-400.0,0.00027397,2]
[379230584,1755199862132,-1012.18,0.00027397,2]
[379230585,1755199862147,-1593.82,0.00027397,2]
[379230586,1755199862163,-500.0,0.00027397,2]
[379230587,1755199862178,-500.0,0.00027397,2]
[379230588,1755199862194,-500.0,0.00027397,2]
[379230589,1755199862210,-5815.02,0.00027397,2]
[379230590,1755199862226,-500.0,0.00027397,2]
[379230591,1755199862241,-500.0,0.00027397,2]
[379230592,1755199862257,-3286.93,0.00027397,2]
[379230593,1755199862278,-500.0,0.00027397,2]
[379230594,1755199862293,-278.85,0.00027397,2]
[379230595,1755199862309,-400.0,0.00027397,2]
[379230596,1755199862325,-400.0,0.00027397,2]
[379230597,1755199862341,-420.64,0.00027397,2]
[379230598,1755199862357,-2602.53,0.00027397,2]
[379230599,1755199862372,-400.0,0.00027397,2]
[379230600,1755199862388,-400.0,0.00027397,2]
[379230601,1755199862403,-400.0,0.00027397,2]
[379230602,1755199862418,-801.92,0.00027397,2]
[379230603,1755199862433,-400.0,0.00027397,2]
[379230604,1755199862449,-641.73,0.00027397,2]
[379230605,1755199862464,-400.0,0.00027397,2]
[379230606,1755199862479,-707.97,0.00027397,2]
[379230607,1755199862495,-1046.69,0.00027397,2]
[379230608,1755199862511,-2829.92,0.00027397,2]
[379230609,1755199862526,-1837.84,0.00027397,2]
[379230610,1755199862543,-3139.18,0.00027397,2]
[379230611,1755199862559,-3469.09,0.00027397,2]
[379230612,1755199862575,-438.43,0.00027397,2]
[379230613,1755199862589,-400.0,0.00027397,2]
[379230614,1755199862605,-886.65,0.00027397,2]
[379230615,1755199862620,-822.54,0.00027397,2]
[379230616,1755199862637,-400.0,0.00027397,2]
[379230617,1755199862653,-2289.01,0.00027397,2]
[379230618,1755199862668,-1174.6,0.00027397,2]
[379230619,1755199862683,-1145.58,0.00027397,2]
[379230620,1755199862699,-400.0,0.00027397,2]
[379230621,1755199862715,-3220.26,0.00027397,2]
[379230622,1755199862730,-400.0,0.00027397,2]
[379230623,1755199862745,-400.0,0.00027397,2]
[379230624,1755199862759,-945.53,0.00027397,2]
[379230625,1755199862774,-5834.56,0.00027397,2]
[379230626,1755199862789,-2355.87,0.00027397,2]
[379230627,1755199862804,-400.0,0.00027397,2]
[379230628,1755199862818,-1074.05,0.00027397,2]
[379230629,1755199862833,-497.08,0.00027397,2]
[379230630,1755199862848,-3854.42,0.00027397,2]
[379230631,1755199862863,-400.0,0.00027397,2]
[379230632,1755199862878,-1778.4,0.00027397,2]
[379230633,1755199862894,-411.59,0.00027397,2]
[379230634,1755199862909,-400.0,0.00027397,2]
[379230635,1755199862924,-400.0,0.00027397,2]
[379230636,1755199862939,-748.67,0.00027397,2]
[379230637,1755199862955,-2355.23,0.00027397,2]
[379230638,1755199862970,-1184.57,0.00027397,2]
[379230639,1755199862987,-1643.01,0.00027397,2]
[379230640,1755199863007,-400.0,0.00027397,2]
[379230641,1755199863023,-400.0,0.00027397,2]
[379230642,1755199863039,-400.0,0.00027397,2]
[379230643,1755199863055,-930.36,0.00027397,2]
[379230644,1755199863072,-538.16,0.00027397,2]
[379230645,1755199863089,-315.425484,0.00027397,7]
[379230646,1755199863105,-315.425484,0.00027397,7]
[379230647,1755199863122,-315.425484,0.00027397,7]
[379230648,1755199863138,-315.425484,0.00027397,7]
[379230649,1755199863154,-400.0,0.00027397,2]
[379230650,1755199863168,-315.425484,0.00027397,7]
[379230651,1755199863185,-1008.63,0.00027397,2]
[379230652,1755199863199,-1669.3,0.00027397,2]
[379230653,1755199863215,-400.0,0.00027397,2]
[379230654,1755199863229,-1202.31,0.00027397,2]
[379230655,1755199863245,-529.342237,0.00027397,7]
[379230656,1755199863262,-400.0,0.00027397,2]
[379230657,1755199863277,-529.342237,0.00027397,7]
[379230658,1755199863293,-529.342237,0.00027397,7]
[379230659,1755199863309,-455.73,0.00027397,2]
[379230660,1755199863324,-529.342237,0.00027397,7]
[379230661,1755199863338,-529.342237,0.00027397,7]
[379230662,1755199863353,-4455.06,0.00027397,2]
[379230663,1755199863367,-315.425484,0.00027397,7]
[379230664,1755199863382,-1946.34,0.00027397,2]
[379230665,1755199863397,-529.342237,0.00027397,7]
[379230666,1755199863411,-315.425484,0.00027397,7]
[379230667,1755199863426,-315.425484,0.00027397,7]
[379230668,1755199863441,-315.425484,0.00027397,7]
[379230669,1755199863456,-400.0,0.00027397,2]
[379230670,1755199863471,-315.425484,0.00027397,7]
[379230671,1755199863486,-1924.11,0.00027397,2]
[379230672,1755199863501,-529.342237,0.00027397,7]
[379230673,1755199863515,-1924.11,0.00027397,2]
[379230674,1755199863530,-472.11,0.00027397,2]
[379230675,1755199863544,-1924.11,0.00027397,2]
[379230676,1755199863558,-1067.39,0.00027397,2]
[379230677,1755199863573,-529.342237,0.00027397,7]
[379230678,1755199863588,-1924.11,0.00027397,2]
[379230679,1755199863603,-400.0,0.00027397,2]